fUST/lending_fUST_20250916
["ID","MTS","AMOUNT","RATE_DAILY","PERIOD"]
[385717342,1757987439220,-615.67457217,0.00022196,3]
[385717343,1757987439230,-468.24552515,0.00022196,3]
[385717344,1757987439239,-472.34677947,0.00022196,3]
[385717345,1757987439250,-480.0,0.00022196,3]
[385717346,1757987439259,-467.93038647,0.00022196,3]
[385717347,1757987439269,-472.05069032,0.00022196,3]
[385717348,1757987439278,-463.21920225,0.00022196,3]
[385717349,1757987439288,-480.0,0.00022196,3]
[385717350,1757987439297,-464.89829515,0.00022196,3]
[385717351,1757987439306,-480.0,0.00022196,3]
[385717352,1757987439315,-471.63088822,0.00022196,3]
[385717353,1757987439325,-407.04400014,0.00022196,3]
[385717354,1757987439334,-482.20539499,0.00022196,3]
[385717355,1757987439343,-472.11574113,0.00022196,3]
[385717356,1757987439352,-536.21158563,0.00022196,3]
[385717357,1757987439362,-470.00049215,0.00022196,3]
[385717358,1757987439371,-462.09653045,0.00022196,3]
[385717359,1757987439380,-467.08190753,0.00022196,3]
[385717360,1757987439390,-480.0,0.00022196,3]
[385717361,1757987439399,-480.0,0.00022196,3]
[385717362,1757987439408,-462.78029667,0.00022196,3]
[385717363,1757987439417,-469.24373776,0.00022196,3]
[385717364,1757987439427,-586.90471744,0.00022196,3]
[385717365,1757987439435,-480.0,0.00022196,3]
[385717366,1757987439445,-469.90889622,0.00022196,3]
[385717367,1757987439455,-324.1074478,0.00022196,3]
[385717368,1757987439464,-484.68297499,0.00022196,3]
[385717369,1757987439473,-480.0,0.00022196,3]
[385717370,1757987439482,-467.46905621,0.00022196,3]
[385717371,1757987439492,-480.0,0.00022196,3]
[385717372,1757987439501,-766.7,0.00022196,3]
[385717373,1757987439510,-464.48698324,0.00022196,3]
[385717374,1757987439519,-465.15456973,0.00022196,3]
[385717375,1757987439528,-480.0,0.00022196,3]
[385717376,1757987439537,-480.0,0.00022196,3]
[385717377,1757987439547,-434.41094054,0.00022196,3]
[385717378,1757987439556,-480.0,0.00022196,3]
[385717379,1757987439565,-480.0,0.00022196,3]
[385717380,1757987439574,-473.57801234,0.00022196,3]
[385717381,1757987439584,-471.64633302,0.00022196,3]
[385717382,1757987439593,-480.0,0.00022196,3]
[385717383,1757987439602,-500.0,0.00022196,3]
[385717384,1757987439611,-243.18922283,0.00022196,3]
[385717385,1757987439621,-480.0,0.00022196,3]
[385717386,1757987439630,-473.38984693,0.00022196,3]
[385717387,1757987439640,-480.0,0.00022196,3]
[385717388,1757987439649,-466.28519186,0.00022196,3]
[385717389,1757987439660,-467.79648607,0.00022196,3]
[385717390,1757987439670,-470.68254458,0.00022196,3]
[385717391,1757987439679,-480.0,0.00022196,3]
[385717392,1757987439688,-480.0,0.00022196,3]
[385717393,1757987439698,-466.57616418,0.00022196,3]
[385717394,1757987439708,-480.0,0.00022196,3]
[385717395,1757987439718,-464.59230258,0.00022196,3]
[385717396,1757987439727,-582.11210614,0.00022196,3]
[385717397,1757987439738,-476.82146224,0.00022196,3]
[385717398,1757987439747,-480.0,0.00022196,3]
[385717399,1757987439757,-480.0,0.00022196,3]
[385717400,1757987439766,-469.91662688,0.00022196,3]
[385717401,1757987439776,-480.0,0.00022196,3]
[385717402,1757987439791,-480.0,0.00022196,3]
[385717403,1757987439801,-480.0,0.00022196,3]
[385717404,1757987439810,-469.82005669,0.00022196,3]
[385717405,1757987439820,-480.0,0.00022196,3]
[385717406,1757987439830,-465.41495787,0.00022196,3]
[385717407,1757987439839,-480.0,0.00022196,3]
[385717408,1757987439848,-480.0,0.00022196,3]
[385717409,1757987439858,-480.0,0.00022196,3]
[385717410,1757987439867,-532.76158333,0.00022196,3]
[385717411,1757987439876,-480.0,0.00022196,3]
[385717412,1757987439886,-464.12343361,0.00022196,3]
[385717413,1757987439895,-480.0,0.00022196,3]
[385717414,1757987439905,-466.34238129,0.00022196,3]
[385717415,1757987439914,-480.0,0.00022196,3]
[385717416,1757987439923,-473.02982413,0.00022196,3]
[385717417,1757987439932,-480.0,0.00022196,3]
[385717418,1757987439941,-480.0,0.00022196,3]
[385717419,1757987439950,-507.85966243,0.00022197,2]
[385717420,1757987439959,-462.82756429,0.00022197,3]
[385717421,1757987439969,-463.00955673,0.00022197,3]
[385717422,1757987439978,-465.75296969,0.00022197,3]
[385717423,1757987439987,-462.52038613,0.00022197,3]
[385717424,1757987439997,-463.07704881,0.00022197,3]
[385717425,1757987440006,-466.22347238,0.00022197,3]
[385717426,1757987440015,-461.76055794,0.00022197,3]
[385717427,1757987440025,-466.68839696,0.00022197,3]
[385717428,1757987440034,-467.17473622,0.00022197,3]
[385717429,1757987440042,-487.83814807,0.00022197,3]
[385717430,1757987440051,-466.49735309,0.00022197,3]
[385717431,1757987440059,-464.54992872,0.00022197,3]
[385717432,1757987440068,-480.0,0.00022197,3]
[385717433,1757987440077,-472.77516837,0.00022197,3]
[385717434,1757987440086,-502.88086701,0.00022197,3]
[385717435,1757987440095,-464.49629354,0.00022197,3]
[385717436,1757987440104,-467.68271114,0.00022197,3]
[385717437,1757987440113,-473.93122862,0.00022197,3]
[385717438,1757987440122,-465.81639686,0.00022197,3]
[385717439,1757987440131,-468.44766671,0.00022197,3]
[385717440,1757987440140,-465.36991388,0.00022197,3]
[385717441,1757987440149,-512.02354938,0.00022197,3]
[385717442,1757987440158,-497.14577187,0.00022197,3]
[385717443,1757987440167,-466.54942846,0.00022197,3]
[385717444,1757987440176,-443.63141603,0.00022197,3]
[385717445,1757987440185,-476.85677227,0.00022197,3]
[385717446,1757987440194,-464.7086636,0.00022197,3]
[385717447,1757987440203,-505.05865758,0.00022197,3]
[385717448,1757987440212,-482.46802352,0.00022197,3]
[385717449,1757987440221,-467.46242403,0.00022197,3]
[385717450,1757987440230,-464.071979,0.00022197,3]
[385717451,1757987440239,-472.50669753,0.00022197,3]
[385717452,1757987440249,-466.6163949,0.00022197,3]
[385717453,1757987440258,-472.13290087,0.00022197,3]
[385717454,1757987440267,-480.0,0.00022197,3]
[385717455,1757987440276,-474.39629858,0.00022197,3]
[385717456,1757987440285,-466.35324129,0.00022197,3]
[385717457,1757987440294,-473.65702569,0.00022197,3]
[385717458,1757987440304,-466.1692436,0.00022197,3]
[385717459,1757987440313,-468.23867986,0.00022197,3]
[385717461,1757987440322,-480.0,0.00022197,3]
[385717462,1757987440331,-467.1009333,0.00022197,3]
[385717463,1757987440341,-470.89037462,0.00022197,3]
[385717464,1757987440349,-483.59490688,0.00022197,3]
[385717465,1757987440358,-478.92558169,0.00022197,3]
[385717466,1757987440368,-464.72859911,0.00022197,3]
[385717472,1757987440473,-468.77117198,0.00022197,3]
[385717474,1757987440482,-472.57762926,0.00022197,3]
[385717477,1757987440492,-467.70068758,0.00022197,3]
[385717479,1757987440501,-466.98478424,0.00022197,3]
[385717481,1757987440510,-474.28730421,0.00022197,3]
[385717483,1757987440519,-489.02442764,0.00022197,3]
[385717485,1757987440528,-464.70984717,0.00022197,3]
[385717487,1757987440537,-480.0,0.00022197,3]
[385717489,1757987440546,-480.0,0.00022197,3]
[385717491,1757987440555,-468.17568412,0.00022197,3]
[385717493,1757987440564,-465.67267672,0.00022197,3]
[385717495,1757987440572,-498.61244455,0.00022197,3]
[385717497,1757987440581,-473.05262195,0.00022197,3]
[385717499,1757987440590,-480.0,0.00022197,3]
[385717500,1757987440599,-480.0,0.00022197,3]
[385717502,1757987440608,-1009.19979243,0.00022197,3]
[385717503,1757987440617,-464.01011525,0.00022197,3]
[385717504,1757987440625,-539.20746201,0.00022197,3]
[385717505,1757987440634,-465.11570822,0.00022197,3]
[385717506,1757987440643,-468.02304665,0.00022197,3]
[385717507,1757987440652,-485.41517174,0.00022197,3]
[385717508,1757987440661,-481.37075762,0.00022197,3]
[385717509,1757987440670,-467.09798883,0.00022197,3]
[385717510,1757987440679,-555.7140535,0.00022197,3]
[385717511,1757987440688,-467.45736426,0.00022197,3]
[385717512,1757987440697,-465.9835547,0.00022197,3]
[385717513,1757987440706,-466.79967651,0.00022197,3]
[385717514,1757987440715,-480.0,0.00022197,3]
[385717515,1757987440724,-466.61298318,0.00022197,3]
[385717516,1757987440733,-492.93845048,0.00022197,3]
[385717517,1757987440743,-463.49681312,0.00022197,3]
[385717518,1757987440752,-499.44605149,0.00022197,3]
[385717519,1757987440761,-480.0,0.00022197,3]
[385717520,1757987440771,-480.0,0.00022197,3]
[385717521,1757987440780,-471.76993011,0.00022197,3]
[385717522,1757987440791,-471.28859209,0.00022197,3]
[385717523,1757987440800,-543.24401079,0.00022197,3]
[385717524,1757987440809,-575.14382805,0.00022197,3]
[385717525,1757987440818,-599.49096495,0.00022197,3]
[385717526,1757987440826,-466.05891538,0.00022197,3]
[385717527,1757987440835,-499.30028833,0.00022197,3]
[385717528,1757987440844,-466.42925234,0.00022197,3]
[385717529,1757987440853,-473.94496437,0.00022197,3]
[385717530,1757987440862,-480.0,0.00022197,3]
[385717531,1757987440871,-462.99680815,0.00022197,3]
[385717532,1757987440879,-462.19500077,0.00022197,3]
[385717533,1757987440889,-537.47889582,0.00022197,3]
[385717534,1757987440898,-467.08533644,0.00022197,3]
[385717535,1757987440907,-460.77305998,0.00022197,3]
[385717536,1757987440916,-460.8696552,0.00022197,3]
[385717537,1757987440925,-480.0,0.00022197,3]
[385717538,1757987440934,-239.8674706,0.00022197,3]
[385717539,1757987440943,-462.99820776,0.00022197,3]
[385717540,1757987440951,-480.0,0.00022197,3]
[385717541,1757987440960,-569.43925677,0.00022197,3]
[385717542,1757987440969,-465.24233419,0.00022197,3]
[385717543,1757987440978,-469.6489429,0.00022197,3]
[385717544,1757987440987,-480.0,0.00022197,3]
[385717545,1757987440999,-467.52998389,0.00022197,3]
[385717546,1757987441014,-480.0,0.00022197,3]
[385717547,1757987441035,-467.64317317,0.00022197,3]
[385717548,1757987441049,-461.7460389,0.00022197,3]
[385717549,1757987441058,-463.9029876,0.00022197,3]
[385717550,1757987441067,-463.00077379,0.00022197,3]
[385717551,1757987441075,-480.0,0.00022197,3]
[385717552,1757987441084,-462.64317986,0.00022197,3]
[385717553,1757987441093,-480.0,0.00022197,3]
[385717554,1757987441102,-482.26379699,0.00022197,2]
[385717555,1757987441110,-509.10490172,0.00022197,3]
[385717556,1757987441119,-462.402542,0.00022197,3]
[385717557,1757987441128,-465.17336725,0.00022197,3]
[385717558,1757987441137,-587.62720452,0.00022197,3]
[385717559,1757987441146,-231.53961664,0.00022197,3]
[385717560,1757987441155,-480.0,0.00022197,3]
[385717561,1757987441163,-475.4143017,0.00022197,3]
[385717562,1757987441173,-468.10708715,0.00022197,3]
[385717563,1757987441181,-480.0,0.00022197,3]
[385717564,1757987441191,-370000.0,0.00022198,2]
[385717565,1757987441200,-8144.89,0.000222,7]
[385717566,1757987441208,-1019.09,0.000222,7]
[385717567,1757987441217,-945.2874561,0.00022297,5]
[385717568,1757987441226,-1039.6816929,0.00022298,2]
[385717569,1757987441235,-179.59981203,0.00022298,3]
[385717570,1757987441245,-469.61158345,0.00022298,3]
[385717571,1757987441254,-469.28988979,0.00022298,3]
[385717572,1757987441263,-597.9102473,0.00022298,3]
[385717573,1757987441271,-472.93322358,0.00022298,3]
[385717574,1757987441280,-471.09775329,0.00022298,3]
[385717575,1757987441289,-473.46584733,0.00022298,3]
[385717576,1757987441298,-468.86698764,0.00022298,3]
[385717577,1757987441307,-563.84058516,0.00022298,3]
[385717578,1757987441316,-466.31683431,0.00022298,3]
[385717579,1757987441324,-468.97165775,0.00022298,3]
[385717580,1757987441333,-153.28145439,0.00022298,3]
[385717581,1757987441342,-463.0992326,0.00022298,3]
[385717582,1757987441350,-465.28226658,0.00022298,3]
[385717583,1757987441359,-535.30946545,0.00022298,3]
[385717584,1757987441368,-462.25045267,0.00022298,3]
[385717585,1757987441377,-475.40233142,0.00022298,3]
[385717586,1757987441386,-501.09622338,0.00022299,3]
[385717587,1757987441395,-469.53622093,0.00022299,3]
[385717588,1757987441404,-468.05828872,0.00022299,3]
[385717589,1757987441412,-300.0,0.0002231,2]
[385717590,1757987441421,-450.0,0.00022447,2]
[385717591,1757987441430,-480.0,0.00022468,3]
[385717592,1757987441439,-480.0,0.00022469,3]
[385717593,1757987441447,-247.99122266,0.00022469,3]
[385717594,1757987441456,-480.0,0.00022469,3]
[385717595,1757987441465,-712.81,0.00022469,3]
[385717596,1757987441474,-480.0,0.00022469,3]
[385717597,1757987441483,-475.81677073,0.00022469,3]
[385717598,1757987441492,-345.27893656,0.00022469,3]
[385717599,1757987441501,-480.0,0.00022469,3]
[385717600,1757987441510,-480.0,0.00022469,3]
[385717601,1757987441519,-304.27847859,0.00022469,3]
[385717602,1757987441528,-480.0,0.00022469,3]
[385717603,1757987441536,-470.50694727,0.00022469,3]
[385717604,1757987441545,-627.64192184,0.00022469,3]
[385717605,1757987441554,-318.09864276,0.00022469,3]
[385717606,1757987441563,-480.0,0.00022469,3]
[385717607,1757987441572,-480.0,0.00022469,3]
[385717608,1757987441581,-480.0,0.00022469,3]
[385717609,1757987441590,-334.15664772,0.00022469,3]
[385717610,1757987441599,-480.0,0.00022469,3]
[385717611,1757987441607,-569.55057039,0.00022469,3]
[385717612,1757987441616,-480.0,0.00022469,3]
[385717613,1757987441626,-480.0,0.00022469,3]
[385717614,1757987441635,-322.86375671,0.0002247,3]
[385717615,1757987441643,-204.47315676,0.0002247,3]
[385717616,1757987441652,-480.0,0.0002247,3]
[385717617,1757987441661,-480.0,0.0002247,3]
[385717618,1757987441670,-243.29623334,0.0002247,3]
[385717619,1757987441678,-480.0,0.0002247,3]
[385717620,1757987441687,-475.74586565,0.0002247,3]
[385717621,1757987441697,-352.07008905,0.0002247,3]
[385717622,1757987441706,-480.0,0.0002247,3]
[385717623,1757987441715,-766.7,0.0002247,3]
[385717624,1757987441724,-480.0,0.0002247,3]
[385717625,1757987441733,-480.0,0.0002247,3]
[385717626,1757987441742,-427.5135894,0.0002247,3]
[385717627,1757987441755,-480.0,0.0002247,3]
[385717628,1757987441765,-480.0,0.0002247,3]
[385717629,1757987441775,-480.0,0.0002247,3]
[385717630,1757987441787,-480.0,0.0002247,3]
[385717631,1757987441795,-480.0,0.0002247,3]
[385717632,1757987441805,-480.0,0.0002247,3]
[385717633,1757987441814,-338.92895351,0.0002247,3]
[385717634,1757987441823,-238.95199552,0.0002247,3]
[385717635,1757987441834,-480.0,0.0002247,3]
[385717636,1757987441844,-444.72904671,0.0002247,3]
[385717637,1757987441852,-480.0,0.0002247,3]
[385717638,1757987441863,-432.69235482,0.0002247,3]
[385717639,1757987441872,-236.16169356,0.0002247,3]
[385717640,1757987441882,-480.0,0.0002247,3]
[385717641,1757987441891,-480.0,0.0002247,3]
[385717642,1757987441900,-480.0,0.0002247,3]
[385717643,1757987441909,-480.0,0.0002247,3]
[385717644,1757987441918,-480.0,0.0002247,3]
[385717645,1757987441927,-369.70982665,0.0002247,3]
[385717646,1757987441935,-622.6002485,0.0002247,3]
[385717647,1757987441944,-480.0,0.0002247,3]
[385717648,1757987441953,-230.09351721,0.00022471,3]
[385717649,1757987441962,-480.0,0.00022471,3]
[385717650,1757987441971,-179.17362185,0.00022471,3]
[385717651,1757987441979,-480.0,0.00022471,3]
[385717652,1757987441988,-557.01332594,0.00022471,3]
[385717653,1757987442001,-207.73101848,0.00022471,3]
[385717654,1757987442010,-503.46878029,0.00022471,3]
[385717655,1757987442018,-368.58497926,0.00022471,3]
[385717656,1757987442028,-176.07166876,0.00022471,3]
[385717657,1757987442037,-162.25740872,0.00022471,3]
[385717658,1757987442046,-480.0,0.00022471,3]
[385717659,1757987442055,-248.7337536,0.00022471,3]
[385717660,1757987442064,-480.0,0.00022471,3]
[385717661,1757987442076,-480.0,0.00022471,3]
[385717662,1757987442085,-480.0,0.00022471,3]
[385717663,1757987442094,-256.6452128,0.00022471,3]
[385717664,1757987442103,-247.27819196,0.00022471,3]
[385717665,1757987442112,-480.0,0.00022471,3]
[385717666,1757987442121,-151.4407665,0.00022471,3]
[385717667,1757987442130,-1039.6816929,0.00022499,2]
[385717668,1757987442139,-368.7943806,0.00022584,2]
[385717669,1757987442148,-300.0,0.00022641,20]
[385717670,1757987442157,-300.0,0.00022641,20]
[385717671,1757987442166,-300.0,0.00022641,20]
[385717672,1757987442175,-300.0,0.00022641,20]
[385717673,1757987442184,-300.0,0.00022641,20]
[385717674,1757987442193,-1039.6816929,0.00022699,2]
[385717675,1757987442206,-1000.0,0.00022721,2]
[385717676,1757987442222,-1000.0,0.00022721,2]
[385717677,1757987442231,-1000.0,0.00022721,2]
[385717678,1757987442240,-1002.05338767,0.00022721,2]
[385717679,1757987442251,-1000.0,0.00022721,2]
[385717680,1757987442260,-1002.34057584,0.00022721,2]
[385717681,1757987442269,-1000.0,0.00022721,2]
[385717682,1757987442279,-1000.0,0.00022721,2]
[385717683,1757987442288,-1000.21332873,0.00022721,2]
[385717684,1757987442297,-1002.14359043,0.00022721,2]
[385717685,1757987442306,-1000.0,0.00022721,2]
[385717686,1757987442315,-364.95903581,0.00022721,2]
[385717687,1757987442324,-1000.0,0.00022721,2]
[385717688,1757987442333,-1000.0,0.00022721,2]
[385717689,1757987442342,-333.74074367,0.00022742,3]
[385717690,1757987442351,-480.0,0.00022743,3]
[385717691,1757987442359,-480.0,0.00022743,3]
[385717692,1757987442368,-712.81,0.00022743,3]
[385717693,1757987442378,-480.0,0.00022743,3]
[385717694,1757987442387,-302.27803816,0.00022743,3]
[385717695,1757987442396,-350.63043554,0.00022743,3]
[385717696,1757987442405,-480.0,0.00022743,3]
[385717697,1757987442414,-454.37713383,0.00022743,3]
[385717698,1757987442423,-480.0,0.00022743,3]
[385717699,1757987442432,-480.0,0.00022743,3]
[385717700,1757987442441,-480.0,0.00022743,3]
[385717701,1757987442450,-480.0,0.00022743,3]
[385717702,1757987442459,-197.70069414,0.00022743,3]
[385717703,1757987442468,-165.82921655,0.00022744,3]
[385717704,1757987442477,-220.39414144,0.00022744,3]
[385717705,1757987442486,-480.0,0.00022744,3]
[385717706,1757987442502,-363.4786515,0.00022744,3]
[385717707,1757987442511,-766.7,0.00022744,3]
[385717708,1757987442521,-480.0,0.00022744,3]
[385717709,1757987442530,-480.0,0.00022744,3]
[385717710,1757987442539,-621.74562662,0.00022744,3]
[385717711,1757987442549,-480.0,0.00022744,3]
[385717712,1757987442558,-337.07848303,0.00022744,3]
[385717713,1757987442567,-362.53449741,0.00022744,3]
[385717714,1757987442575,-480.0,0.00022744,3]
[385717715,1757987442584,-480.0,0.00022744,3]
[385717716,1757987442593,-480.0,0.00022744,3]
[385717717,1757987442602,-480.0,0.00022744,3]
[385717718,1757987442611,-411.15419452,0.00022744,3]
[385717719,1757987442620,-491.22033115,0.00022744,3]
[385717720,1757987442629,-480.0,0.00022744,3]
[385717721,1757987442638,-480.0,0.00022744,3]
[385717722,1757987442646,-466.02575553,0.00022744,3]
[385717723,1757987442655,-480.0,0.00022744,3]
[385717724,1757987442664,-480.0,0.00022745,3]
[385717725,1757987442673,-277.12123648,0.00022745,3]
[385717726,1757987442682,-480.0,0.00022745,3]
[385717727,1757987442692,-480.0,0.00022745,3]
[385717728,1757987442701,-480.0,0.00022745,3]
[385717729,1757987442710,-480.0,0.00022745,3]
[385717730,1757987442718,-213.07217785,0.00022745,3]
[385717731,1757987442727,-1039.6816929,0.000229,2]
[385717732,1757987442736,-315.44323192,0.00022932,2]
[385717733,1757987442747,-500.0,0.00022932,2]
[385717734,1757987442757,-500.0,0.00022932,2]
[385717735,1757987442766,-20567.1914319,0.0002299,2]
[385717736,1757987442775,-847.45018724,0.00023,3]
[385717737,1757987442787,-233.24851325,0.00023,3]
[385717738,1757987442796,-222.83391743,0.00023017,3]
[385717739,1757987442805,-480.0,0.00023017,3]
[385717740,1757987442814,-712.81,0.00023017,3]
[385717741,1757987442823,-480.0,0.00023017,3]
[385717742,1757987442832,-480.0,0.00023017,3]
[385717743,1757987442841,-480.0,0.00023017,3]
[385717744,1757987442850,-524.59698594,0.00023017,3]
[385717745,1757987442863,-480.0,0.00023017,3]
[385717746,1757987442872,-281.28738845,0.00023017,3]
[385717747,1757987442881,-480.0,0.00023018,3]
[385717748,1757987442890,-766.7,0.00023018,3]
[385717749,1757987442898,-561.5897047,0.00023018,3]
[385717750,1757987442907,-480.0,0.00023018,3]
[385717751,1757987442916,-170.11373385,0.00023018,3]
[385717752,1757987442925,-480.0,0.00023018,3]
[385717753,1757987442934,-480.0,0.00023018,3]
[385717754,1757987442944,-311.15333133,0.00023018,3]
[385717755,1757987442953,-480.0,0.00023018,3]
[385717756,1757987442963,-480.0,0.00023018,3]
[385717757,1757987443049,-455.09,0.00023018,3]
[385717758,1757987443068,-480.0,0.00023018,3]
[385717759,1757987443078,-563.99,0.00023019,3]
[385717760,1757987443087,-507.01,0.00023019,3]
[385717761,1757987443096,-480.0,0.00023019,3]
[385717762,1757987443105,-480.0,0.00023019,3]
[385717763,1757987443115,-480.0,0.00023019,3]
[385717764,1757987443123,-301.17731702,0.00023183,2]
[385717765,1757987443133,-7878.81191033,0.00023223,2]
[385717766,1757987443142,-204.14697889,0.00023236,2]
[385717767,1757987443151,-252.35742438,0.00023268,2]
[385717768,1757987443160,-1500.0,0.00023268,2]
[385717769,1757987443169,-1500.0,0.00023268,2]
[385717770,1757987443178,-1500.0,0.00023268,2]
[385717771,1757987443187,-1500.0,0.00023268,2]
[385717772,1757987443196,-1500.0,0.00023268,2]
[385717773,1757987443206,-1515.88487927,0.00023268,2]
[385717774,1757987443215,-1500.0,0.00023268,2]
[385717775,1757987443223,-1500.0,0.00023268,2]
[385717776,1757987443232,-1206.05,0.00023287,2]
[385717777,1757987443242,-480.0,0.00023291,3]
[385717778,1757987443252,-712.81,0.00023291,3]
[385717779,1757987443262,-480.0,0.00023291,3]
[385717780,1757987443271,-480.0,0.00023291,3]
[385717781,1757987443280,-480.0,0.00023291,3]
[385717783,1757987443289,-480.0,0.00023291,3]
[385717784,1757987443299,-315.83974428,0.00023292,3]
[385717785,1757987443308,-766.7,0.00023292,3]
[385717786,1757987443317,-310.59564127,0.00023292,3]
[385717787,1757987443326,-480.0,0.00023292,3]
[385717788,1757987443335,-480.0,0.00023292,3]
[385717789,1757987443345,-480.0,0.00023292,3]
[385717790,1757987443354,-480.0,0.00023292,3]
[385717791,1757987443363,-480.0,0.00023292,3]
[385717792,1757987443373,-480.0,0.00023293,3]
[385717793,1757987443383,-480.0,0.00023293,3]
[385717794,1757987443392,-480.0,0.00023293,3]
[385717795,1757987443401,-160.0,0.0002345,2]
[385717796,1757987443410,-501.65878862,0.0002348,2]
[385717797,1757987443419,-1000.0,0.0002348,2]
[385717798,1757987443428,-480.0,0.00023565,3]
[385717799,1757987443438,-712.81,0.00023565,3]
[385717800,1757987443447,-480.0,0.00023565,3]
[385717801,1757987443456,-264.16145078,0.00023565,3]
[385717802,1757987443465,-480.0,0.00023565,3]
[385717803,1757987443474,-522.90212271,0.00023565,3]
[385717804,1757987443483,-766.7,0.00023566,3]
[385717805,1757987443493,-480.0,0.00023566,3]
[385717806,1757987443503,-480.0,0.00023566,3]
[385717807,1757987443512,-480.0,0.00023566,3]
[385717808,1757987443522,-480.0,0.00023566,3]
[385717809,1757987443530,-480.0,0.00023566,3]
[385717810,1757987443541,-480.0,0.00023567,3]
[385717811,1757987443550,-480.0,0.00023567,3]
[385717812,1757987443559,-480.0,0.00023567,3]
[385717813,1757987443569,-312.0,0.00023652,2]
[385717814,1757987443578,-1007.54597401,0.00023816,2]
[385717815,1757987443587,-1005.73345877,0.00023816,2]
[385717816,1757987443597,-1012.15441683,0.00023816,2]
[385717817,1757987443606,-608.08863199,0.00023816,2]
[385717818,1757987443618,-1007.25987822,0.00023816,2]
[385717819,1757987443628,-510.19796224,0.00023816,2]
[385717820,1757987443637,-2000.0,0.00023816,2]
[385717822,1757987443647,-480.0,0.00023839,3]
[385717824,1757987443656,-712.81,0.00023839,3]
[385717825,1757987443667,-480.0,0.00023839,3]
[385717826,1757987443676,-480.0,0.00023839,3]
[385717827,1757987443685,-766.7,0.0002384,3]
[385717828,1757987443694,-386.7407538,0.0002384,3]
[385717829,1757987443704,-480.0,0.0002384,3]
[385717830,1757987443714,-480.0,0.0002384,3]
[385717832,1757987443729,-480.0,0.0002384,3]
[385717833,1757987443739,-480.0,0.0002384,3]
[385717834,1757987443750,-480.0,0.00023841,3]
[385717836,1757987443759,-509.50010323,0.00023841,3]
[385717837,1757987443768,-480.0,0.00023841,3]
[385717838,1757987443778,-328.69769675,0.00023884,2]
[385717839,1757987443791,-260.0,0.00023998,2]
[385717840,1757987443800,-1500.0,0.00024028,2]
[385717841,1757987443809,-420.0,0.00024089,2]
[385717842,1757987443818,-480.0,0.00024113,3]
[385717843,1757987443828,-712.81,0.00024113,3]
[385717844,1757987443839,-480.0,0.00024113,3]
[385717845,1757987443848,-480.0,0.00024113,3]
[385717846,1757987443859,-766.7,0.00024114,3]
[385717847,1757987443868,-480.0,0.00024114,3]
[385717848,1757987443877,-399.2608514,0.00024114,3]
[385717849,1757987443886,-480.0,0.00024114,3]
[385717850,1757987443895,-480.0,0.00024114,3]
[385717851,1757987443904,-480.0,0.00024115,3]
[385717852,1757987443915,-480.0,0.00024115,3]
[385717853,1757987443924,-1019.09,0.000242,7]
[385717854,1757987443933,-233.24851325,0.000242,7]
[385717855,1757987443943,-499.0,0.00024202,2]
[385717856,1757987443952,-160.0,0.00024269,2]
[385717857,1757987443962,-233.24851325,0.00024269,2]
[385717858,1757987443971,-160.0,0.0002427,2]
[385717859,1757987443981,-160.0,0.0002427,2]
[385717860,1757987443990,-160.0,0.0002427,2]
[385717861,1757987444002,-847.45018724,0.0002427,2]
[385717862,1757987444012,-1598.31970209,0.00024364,2]
[385717863,1757987444021,-204.14697889,0.00024376,2]
[385717864,1757987444030,-480.0,0.00024387,3]
[385717865,1757987444039,-712.81,0.00024387,3]
[385717866,1757987444049,-480.0,0.00024387,3]
[385717867,1757987444058,-480.0,0.00024387,3]